bitfinex/quotes_SOLUSD_20230113
["timestamp","ask_amount","ask_price","bid_price","bid_amount"]
[1673586717275,10.0,16.973,16.96,23.6]
[1673586717691,30.46683801,16.972,16.96,23.6]
[1673586718008,10.0,16.977,16.96,23.6]
[1673586718219,30.46683801,16.976,16.96,23.6]
[1673586718614,67.40789199,16.978,16.96,23.6]
[1673586719064,97.87473,16.978,16.96,23.6]
[1673586719243,10.0,16.977,16.96,23.6]
[1673586719457,67.01206799,16.977,16.96,23.6]
[1673586719689,10.0,16.975,16.96,23.6]
[1673586720092,30.46683801,16.974,16.96,23.6]
[1673586720425,10.0,16.973,16.96,23.6]
[1673586720827,30.46683801,16.972,16.956,108.6335]
[1673586721686,38.92,16.971,16.951,123.1517979]
[1673586721892,14.85777,16.97,16.951,123.1517979]
[1673586722099,24.85777,16.969,16.951,123.1517979]
[1673586722318,55.32460801,16.969,16.952,10.0]
[1673586722523,189.41191058,16.972,16.952,10.0]
[1673586722524,30.46683801,16.968,16.952,10.0]
[1673586722844,10.0,16.973,16.952,10.0]
[1673586723151,30.46683801,16.971,16.952,10.0]
[1673586723363,30.46683801,16.971,16.951,123.1517979]
[1673586723552,10.0,16.97,16.951,123.1517979]
[1673586723771,10.0,16.97,16.952,20.0]
[1673586726100,30.46683801,16.971,16.953,10.0]
[1673586726504,30.46683801,16.971,16.954,20.0]
[1673586727159,10.0,16.97,16.954,20.0]
[1673586727567,10.0,16.97,16.953,20.0]
[1673586727879,30.46683801,16.971,16.953,20.0]
[1673586728205,10.0,16.97,16.953,20.0]
[1673586728614,10.0,16.968,16.951,123.1517979]
[1673586729044,10.0,16.966,16.951,123.1517979]
[1673586730098,10.0,16.97,16.951,123.1517979]
[1673586730099,10.0,16.978,16.96,23.6]
[1673586730305,1.92,16.975,16.952,20.0]
[1673586730524,23.59,16.97,16.951,123.1517979]
[1673586730708,11.92,16.969,16.951,123.1517979]
[1673586730919,99.398906,16.969,16.951,123.1517979]
[1673586731130,10.0,16.967,16.951,123.1517979]
[1673586731341,20.0,16.966,16.951,123.1517979]
[1673586731571,10.0,16.965,16.951,123.1517979]
[1673586731977,48.42683801,16.964,16.951,123.1517979]
[1673586732407,40.46683801,16.963,16.951,123.1517979]
[1673586732807,10.0,16.961,16.951,10.9971979]
[1673586733023,0.96,16.96,16.951,10.9971979]
[1673586733245,31.42683801,16.96,16.951,10.9971979]
[1673586733573,57.46683801,16.959,16.951,10.9971979]
[1673586733763,10.0,16.958,16.951,10.9971979]
[1673586733974,40.46683801,16.958,16.951,10.9971979]
[1673586734724,30.46683801,16.958,16.951,10.9971979]
[1673586735338,10.0,16.961,16.951,10.9971979]
[1673586735549,30.46683801,16.96,16.951,10.9971979]
[1673586735959,10.0,16.959,16.951,10.9971979]
[1673586736388,40.46683801,16.959,16.951,10.9971979]
[1673586737984,10.0,16.959,16.951,10.9971979]
[1673586738821,10.0,16.961,16.951,10.9971979]
[1673586743334,10.0,16.961,16.951,10.4972953]
[1673586743766,10.0,16.962,16.951,10.4972953]
[1673586746589,4.85777,16.97,16.951,10.4972953]
[1673586746798,117.1144,16.974,16.953,10.0]
[1673586747007,117.1144,16.974,16.954,117.9832]
[1673586747215,117.1144,16.974,16.955,10.0]
[1673586747869,23.81,16.98,16.96,23.6]
[1673586748065,20.0,16.978,16.96,23.6]
[1673586748269,10.0,16.98,16.96,23.6]
[1673586748487,33.6,16.98,16.96,23.6]
[1673586748811,10.0,16.977,16.954,117.9832]
[1673586749122,10.0,16.975,16.954,117.9832]
[1673586749349,0.96,16.974,16.954,117.9832]
[1673586749645,0.96,16.974,16.955,10.0]
[1673586749864,17.96,16.974,16.955,10.0]
[1673586750178,17.96,16.974,16.956,20.0]
[1673586750391,17.96,16.974,16.956,135.3893]
[1673586751859,4.85777,16.976,16.96,23.6]
[1673586752065,24.85777,16.976,16.96,23.6]
[1673586752701,10.0,16.975,16.96,23.6]
[1673586753032,14.85777,16.975,16.96,23.6]
[1673586753243,18.92,16.974,16.96,23.6]
[1673586755022,17.0,16.974,16.96,23.6]
[1673586755227,119.1562,16.974,16.96,23.6]
[1673586756371,10.0,16.973,16.96,23.6]
[1673586756583,10.0,16.973,16.956,135.3893]
[1673586758182,23.6,16.97,16.954,117.9832]
[1673586758369,38.92,16.969,16.954,117.9832]
[1673586758585,10.0,16.968,16.954,117.9832]
[1673586758796,37.96,16.967,16.954,117.9832]
[1673586759001,10.0,16.966,16.954,117.9832]
[1673586759336,37.96,16.965,16.951,10.4972953]
[1673586759541,0.96,16.964,16.951,10.4972953]
[1673586759739,0.96,16.963,16.951,10.4972953]
[1673586760163,17.96,16.963,16.951,10.4972953]
[1673586760695,10.0,16.962,16.951,10.4972953]
[1673586760893,17.96,16.961,16.951,10.4972953]
[1673586761104,10.0,16.96,16.951,10.4972953]
[1673586761320,0.96,16.959,16.951,10.4972953]
[1673586761543,17.96,16.959,16.951,10.4972953]
[1673586761755,37.96,16.959,16.951,10.4972953]
[1673586762068,20.0,16.959,16.951,10.4972953]
[1673586762901,20.0,16.959,16.951,9.9972953]
[1673586765756,17.96,16.958,16.951,9.9972953]
[1673586766074,10.96,16.958,16.951,9.9972953]
[1673586766266,37.0,16.957,16.951,9.9972953]
[1673586766477,10.96,16.956,16.951,9.9972953]
[1673586766685,10.0,16.954,16.93,128.3]
[1673586766907,17.96,16.953,16.936,119.6512]
[1673586767126,10.0,16.954,16.936,119.6512]
[1673586767870,10.0,16.954,16.937,10.0]
[1673586768173,10.0,16.954,16.936,119.6512]
[1673586768381,0.96,16.953,16.936,119.6512]
[1673586768597,40.46683801,16.955,16.936,119.6512]
[1673586768799,17.96,16.954,16.939,10.0]
[1673586769206,17.0,16.954,16.939,10.0]
[1673586769541,17.0,16.954,16.937,10.0]
[1673586769950,10.0,16.955,16.936,119.6512]
[1673586770157,14.85777,16.955,16.939,10.0]
[1673586770570,30.0,16.957,16.94,23.6]
[1673586770571,20.0,16.957,16.94,23.6]
[1673586770780,20.0,16.957,16.941,10.0]
[1673586771118,50.46683801,16.957,16.94,23.6]
[1673586771643,50.46683801,16.957,16.941,10.0]
[1673586773623,20.0,16.957,16.941,10.0]
[1673586773830,30.46683801,16.957,16.941,10.0]
[1673586774044,20.0,16.956,16.941,10.0]
[1673586774259,20.0,16.956,16.94,23.6]
[1673586775642,20.0,16.956,16.941,10.0]
[1673586775846,23.6,16.96,16.947,10.0]
[1673586776053,30.46683801,16.963,16.947,10.0]
[1673586776255,10.0,16.969,16.947,10.0]
[1673586776461,103.60777267,16.97,16.95,23.6]
[1673586776672,73.14093466,16.97,16.951,10.0]
[1673586777094,89.88777267,16.969,16.947,109.999]
[1673586777301,4.85777,16.968,16.947,109.999]
[1673586777517,10.0,16.967,16.947,107.499]
[1673586777739,4.85777,16.966,16.947,107.499]
[1673586777932,10.0,16.964,16.947,107.499]
[1673586778142,4.85777,16.963,16.947,107.499]
[1673586778462,17.96,16.962,16.946,114.0317]
[1673586778666,10.0,16.96,16.946,114.0317]
[1673586779083,20.0,16.959,16.946,114.0317]
[1673586779311,10.0,16.958,16.946,114.0317]
[1673586779533,20.0,16.957,16.946,114.0317]
[1673586779719,0.96,16.956,16.945,110.644602]
[1673586779929,27.96,16.956,16.945,110.644602]
[1673586780255,30.46683801,16.955,16.945,110.644602]
[1673586780468,0.96,16.954,16.945,110.644602]
[1673586780886,30.46683801,16.953,16.945,110.644602]
[1673586782241,10.0,16.952,16.945,110.644602]
[1673586782562,40.46683801,16.952,16.945,110.644602]
[1673586782764,20.0,16.951,16.945,110.644602]
[1673586783620,20.0,16.952,16.945,110.644602]
[1673586784048,10.0,16.951,16.945,110.644602]
[1673586784271,20.0,16.95,16.945,110.644602]
[1673586785630,20.0,16.952,16.945,110.644602]
[1673586785831,10.0,16.951,16.945,110.644602]
[1673586786041,10.0,16.951,16.933,10.0]
[1673586786042,20.0,16.95,16.92,138.6317]
[1673586786363,23.59,16.94,16.922,109.6286]
[1673586786673,20.0,16.939,16.922,109.6286]
[1673586786872,20.0,16.939,16.923,10.0]
[1673586787079,10.0,16.948,16.927,10.0]
[1673586787306,0.96,16.947,16.927,10.0]
[1673586787499,17.96,16.947,16.927,10.0]
[1673586788348,119.35137,16.949,16.927,10.0]
[1673586788555,119.35137,16.949,16.93,23.6]
[1673586788767,119.35137,16.949,16.931,112.4684]
[1673586788984,10.0,16.948,16.931,112.4684]
[1673586789395,119.35137,16.949,16.932,10.0]
[1673586789926,20.0,16.948,16.932,9.5]
[1673586790133,24.85777,16.949,16.931,112.4684]
[1673586792145,20.0,16.949,16.932,10.0]
[1673586792347,20.0,16.953,16.932,10.0]
[1673586792876,10.0,16.952,16.931,112.4684]
[1673586793081,23.6,16.95,16.931,112.4684]
[1673586793283,20.96,16.949,16.931,112.4684]
[1673586793609,23.6,16.94,16.926,57.60877573]
[1673586793921,23.77777,16.939,16.921,117.628]
[1673586794139,20.0,16.938,16.921,117.628]
[1673586794332,22.81777,16.937,16.912,10.0]
[1673586794533,22.81777,16.937,16.913,117.128]
[1673586794534,20.0,16.936,16.913,117.128]
[1673586794746,20.0,16.936,16.92,23.46]
[1673586794973,20.0,16.936,16.92,134.3083]
[1673586795171,20.0,16.938,16.92,134.3083]
[1673586795381,20.0,16.938,16.921,10.0]
[1673586795816,20.0,16.938,16.92,134.3083]
[1673586796434,42.49521982,16.939,16.92,134.3083]
[1673586796656,117.4423,16.949,16.921,20.0]
[1673586796875,42.49521982,16.944,16.922,10.0]
[1673586797399,42.49521982,16.944,16.923,20.0]
[1673586797794,18.92,16.943,16.923,20.0]
[1673586798000,4.85777,16.942,16.923,20.0]
[1673586798214,17.96,16.941,16.922,20.0]
[1673586798869,4.85777,16.942,16.922,20.0]
[1673586799178,17.96,16.941,16.921,20.0]
[1673586799368,17.96,16.941,16.921,30.0]
[1673586799791,17.96,16.941,16.922,112.9942]
[1673586800018,17.96,16.941,16.923,20.0]
[1673586800226,23.59,16.94,16.923,20.0]
[1673586800421,10.0,16.939,16.922,112.9942]
[1673586800631,43.77777,16.938,16.922,112.9942]
[1673586800841,10.0,16.937,16.922,112.9942]
[1673586801062,17.96,16.936,16.922,112.9942]
[1673586801271,37.96,16.936,16.922,112.9942]
[1673586801700,14.85777,16.935,16.92,110.8483]
[1673586802016,17.96,16.934,16.92,110.8483]
[1673586802435,17.0,16.934,16.92,110.8483]
[1673586802649,4.85777,16.935,16.92,110.8483]
[1673586802864,17.96,16.934,16.92,110.8483]
[1673586803388,4.85777,16.935,16.92,110.8483]
[1673586805903,20.0,16.937,16.92,110.8483]
[1673586806434,118.24,16.95,16.921,10.0]
[1673586806625,119.7538,16.949,16.922,137.9858]
[1673586806840,42.49521982,16.947,16.923,10.0]
[1673586807160,42.49521982,16.947,16.924,20.0]
[1673586807348,119.7538,16.949,16.924,20.0]
[1673586807349,10.0,16.945,16.924,20.0]
[1673586807564,4.85777,16.944,16.924,20.0]
[1673586807807,10.0,16.943,16.923,20.0]
[1673586807990,57.35298982,16.943,16.923,20.0]
[1673586808195,23.59,16.94,16.923,20.0]
[1673586808427,27.96,16.939,16.923,20.0]
[1673586808855,17.96,16.939,16.923,20.0]
[1673586809050,10.0,16.938,16.922,117.9858]
[1673586809258,43.77777,16.937,16.922,117.9858]
[1673586809476,4.85777,16.936,16.92,110.8483]
[1673586809684,18.92,16.935,16.92,110.3483]
[1673586809898,23.77777,16.935,16.92,110.3483]
[1673586810532,22.81777,16.935,16.92,110.3483]
[1673586811252,4.85777,16.935,16.92,110.3483]
[1673586812309,20.0,16.937,16.92,110.3483]
[1673586813785,20.0,16.937,16.92,133.9483]
[1673586818193,322.47969923,16.948,16.922,10.0]
[1673586818607,322.47969923,16.948,16.93,23.6]
[1673586818820,14.85777,16.945,16.922,50.06748688]
[1673586819043,23.6,16.94,16.921,110.0399]
[1673586819255,30.0,16.939,16.921,110.0399]
[1673586819444,20.0,16.939,16.921,110.0399]
[1673586819869,17.0,16.938,16.921,110.0399]
[1673586820086,20.0,16.937,16.921,110.0399]
[1673586822385,17.96,16.936,16.911,112.5532]
[1673586822611,15.81777,16.935,16.913,111.0054]
[1673586822820,10.0,16.933,16.914,20.0]
[1673586823014,17.96,16.932,16.914,20.0]
[1673586823229,4.85777,16.933,16.914,20.0]
[1673586823459,4.85777,16.933,16.915,10.0]
[1673586823871,4.85777,16.933,16.913,111.0054]
[1673586823872,23.6,16.93,16.913,111.0054]
[1673586824202,43.77777,16.929,16.913,111.0054]
[1673586824388,17.0,16.928,16.91,47.437049]
[1673586824596,26.77777,16.927,16.91,23.627049]
[1673586824806,21.85777,16.926,16.91,23.627049]
[1673586825143,10.0,16.924,16.91,23.627049]
[1673586825348,4.85777,16.923,16.91,23.627049]
[1673586825663,30.46683801,16.923,16.91,23.627049]
[1673586826501,20.96,16.927,16.91,23.627049]
[1673586826696,20.0,16.926,16.91,23.627049]
[1673586826906,0.96,16.927,16.91,23.627049]
[1673586827133,17.96,16.927,16.91,23.627049]
[1673586827763,20.0,16.926,16.911,119.4595]
[1673586827975,20.0,16.926,16.91,47.227049]
[1673586829869,20.0,16.926,16.91,23.6]
[1673586830595,17.96,16.925,16.911,119.4595]
[1673586831018,10.0,16.924,16.91,23.6]
[1673586831349,17.96,16.925,16.905,110.3378]
[1673586831758,17.96,16.925,16.906,10.0]
[1673586831970,17.96,16.925,16.905,110.3378]
[1673586832717,17.96,16.925,16.906,10.0]
[1673586832910,17.96,16.925,16.905,109.3378]
[1673586833121,10.0,16.924,16.905,109.3378]
[1673586833330,17.96,16.925,16.905,109.3378]
[1673586833751,17.96,16.925,16.906,10.0]
[1673586833964,17.96,16.925,16.905,109.3378]
[1673586834277,22.81777,16.925,16.905,109.3378]
[1673586834495,10.0,16.923,16.905,109.3378]
[1673586834809,4.85777,16.924,16.905,109.3378]
[1673586835655,4.85777,16.924,16.906,10.0]
[1673586835976,20.0,16.927,16.91,23.6]
[1673586836160,20.0,16.927,16.912,10.0]
[1673586836711,118.21,16.94,16.913,20.0]
[1673586837025,128.9083,16.937,16.914,10.0]
[1673586837209,30.46683801,16.935,16.915,20.0]
[1673586837959,35.32460801,16.935,16.915,20.0]
[1673586838172,35.32460801,16.935,16.912,20.0]
[1673586838386,35.32460801,16.934,16.912,30.0]
[1673586838593,4.85777,16.934,16.913,115.8956]
[1673586838811,17.96,16.933,16.914,30.0]
[1673586839339,17.96,16.933,16.914,20.0]
[1673586841323,17.96,16.933,16.914,19.5]
[1673586841961,10.0,16.932,16.913,115.8956]
[1673586842173,37.96,16.931,16.913,115.8956]
[1673586842370,17.96,16.933,16.913,115.8956]
[1673586842580,4.85777,16.934,16.913,115.8956]
[1673586843220,4.85777,16.933,16.913,115.8956]
[1673586843422,4.85777,16.933,16.914,20.0]
[1673586843847,30.46683801,16.932,16.914,20.0]
[1673586844470,4.85777,16.933,16.914,20.0]
[1673586844902,17.96,16.932,16.914,20.0]
[1673586845643,22.81777,16.932,16.914,20.0]
[1673586846592,22.81777,16.932,16.914,19.5]
[1673586846783,10.0,16.929,16.913,115.8956]
[1673586846997,43.77777,16.928,16.913,115.8956]
[1673586847323,10.0,16.927,16.913,115.8956]
[1673586847510,20.0,16.926,16.913,115.8956]
[1673586848159,20.0,16.927,16.913,115.8956]
[1673586848774,10.96,16.926,16.913,115.8956]
[1673586849199,10.0,16.926,16.913,115.8956]
[1673586850475,20.0,16.927,16.913,115.8956]
[1673586850688,10.0,16.926,16.913,115.8956]
[1673586851528,20.0,16.927,16.913,115.8956]
[1673586852057,24.85777,16.928,16.913,115.8956]
[1673586852901,24.85777,16.928,16.913,115.3956]
[1673586853632,316.40306661,16.934,16.92,23.6]
[1673586853846,119.0305,16.938,16.92,23.6]
[1673586854042,30.46683801,16.936,16.92,23.6]
[1673586854251,30.46683801,16.936,16.92,142.3727]
[1673586854875,119.0305,16.938,16.92,142.3727]
[1673586855085,20.0,16.937,16.92,142.3727]
[1673586855930,119.0305,16.938,16.92,142.3727]
[1673586856573,115.1942,16.939,16.921,10.0]
[1673586856766,118.24,16.95,16.922,20.0]
[1673586856976,119.1933,16.946,16.922,20.0]
[1673586857199,119.1933,16.946,16.923,20.90158996]
[1673586857410,119.1933,16.946,16.924,10.0]
[1673586857625,119.1933,16.946,16.925,20.0]
[1673586857814,119.1933,16.946,16.926,10.0]
[1673586858449,119.1933,16.946,16.93,23.6]
[1673586858659,123.88827,16.947,16.93,23.6]
[1673586858875,119.0305,16.947,16.93,23.6]
[1673586859086,41.28550066,16.954,16.93,23.6]
[1673586859305,14.85777,16.953,16.931,1.3627929]
[1673586859515,4.85777,16.952,16.93,23.6]
[1673586859717,23.59,16.95,16.93,23.6]
[1673586859930,28.44777,16.95,16.93,23.6]
[1673586860144,20.0,16.949,16.93,23.6]
[1673586860781,0.96,16.948,16.93,23.6]
[1673586861196,17.96,16.948,16.93,23.6]
[1673586861397,10.96,16.947,16.929,109.7405]
[1673586861609,42.81777,16.946,16.929,109.7405]
[1673586861835,42.81777,16.946,16.927,119.4036]
[1673586862031,5.81777,16.945,16.927,119.4036]
[1673586862243,22.81777,16.944,16.927,119.4036]
[1673586862474,5.81777,16.944,16.927,119.4036]
[1673586863298,4.85777,16.944,16.927,119.4036]
[1673586864672,20.0,16.948,16.928,10.0]
[1673586865197,20.0,16.949,16.928,10.0]
[1673586865399,17.0,16.948,16.93,23.46]
[1673586865613,20.0,16.947,16.93,23.46]
[1673586866862,24.85777,16.949,16.93,23.46]
[1673586867411,24.85777,16.949,16.931,10.0]
[1673586868252,4.85777,16.949,16.931,10.0]
[1673586868444,4.85777,16.949,16.93,33.46]
[1673586868871,4.85777,16.949,16.93,54.36158996]
[1673586870673,4.85777,16.949,16.93,44.36158996]
[1673586872858,4.85777,16.949,16.931,10.0]
[1673586873613,4.85777,16.949,16.933,1.72328995]
[1673586873799,116.3919,16.954,16.933,11.72328995]
[1673586874009,116.3919,16.954,16.935,1.82238119]
[1673586874956,116.3919,16.954,16.936,119.6313]
[1673586875168,116.3919,16.954,16.937,1.82238119]
[1673586875905,116.3919,16.954,16.938,109.1178]
[1673586876236,116.3919,16.954,16.939,1.82238119]
[1673586876965,116.3919,16.954,16.938,109.1178]
[1673586878230,116.3919,16.954,16.934,20.0]
[1673586878436,23.6,16.95,16.931,109.0813]
[1673586878651,10.0,16.948,16.931,109.0813]
[1673586878865,20.96,16.947,16.931,109.0813]
[1673586879061,68.42683801,16.947,16.931,109.0813]
[1673586879389,31.42683801,16.946,16.92,246.9227]
[1673586879596,32.81777,16.945,16.922,109.0813]
[1673586879911,5.81777,16.944,16.922,109.0813]
[1673586880131,22.81777,16.943,16.922,109.0813]
[1673586880534,22.81777,16.943,16.923,10.0]
[1673586880947,4.85777,16.943,16.923,10.0]
[1673586882008,4.85777,16.943,16.924,20.0]
[1673586882439,30.46683801,16.944,16.925,10.0]
[1673586882745,111.8122,16.945,16.925,10.0]
[1673586882959,111.8122,16.945,16.925,9.5]
[1673586883482,111.8122,16.945,16.924,40.90158996]
[1673586883704,10.96,16.944,16.924,40.90158996]
[1673586884628,17.0,16.943,16.924,40.90158996]
[1673586884963,15.81777,16.944,16.924,40.90158996]
[1673586885155,4.85777,16.943,16.924,20.0]
[1673586885366,18.92,16.942,16.924,20.0]
[1673586885576,4.85777,16.941,16.923,20.0]
[1673586885793,17.96,16.94,16.923,20.0]
[1673586887164,4.85777,16.941,16.93,23.6]
[1673586887365,646.48,16.963,16.932,10.0]
[1673586887366,112.9306,16.955,16.932,10.0]
[1673586887578,112.9306,16.955,16.94,23.6]
[1673586888616,10.96,16.954,16.94,23.6]
[1673586889366,0.96,16.954,16.94,23.6]
[1673586889574,112.9306,16.955,16.94,23.6]
[1673586897239,10.0,16.954,16.938,112.0003]
[1673586898618,10.0,16.954,16.933,139.2733]
[1673586898803,10.0,16.952,16.933,139.2733]
[1673586899433,10.0,16.952,16.93,23.69]
[1673586899650,10.0,16.949,16.93,23.69]
[1673586899969,10.0,16.947,16.93,23.69]
[1673586900197,20.0,16.946,16.93,23.69]
[1673586902067,20.0,16.947,16.93,23.69]
[1673586902279,4.85777,16.948,16.93,23.69]
[1673586902280,4.85777,16.948,16.93,15.84]
[1673586904085,4.85777,16.948,16.927,115.923]
[1673586904297,27.96,16.947,16.927,115.923]
[1673586904509,20.0,16.946,16.927,115.923]
[1673586905547,10.0,16.945,16.927,115.923]
[1673586905879,0.96,16.944,16.927,115.923]
[1673586907017,10.0,16.945,16.927,115.923]
[1673586907349,0.96,16.944,16.927,115.923]
[1673586907541,0.96,16.943,16.927,115.923]
[1673586907750,10.96,16.942,16.927,115.923]
[1673586909240,4.85777,16.943,16.927,115.923]
[1673586910063,0.96,16.942,16.927,115.923]
[1673586918170,17.96,16.942,16.922,19.93770351]
[1673586918392,15.74,16.94,16.923,20.0]
[1673586918577,10.96,16.939,16.923,20.0]
[1673586919014,0.96,16.939,16.922,20.0]
[1673586919735,17.96,16.939,16.922,20.0]
[1673586921631,4.85777,16.938,16.922,20.0]
[1673586923728,4.85777,16.938,16.922,30.0]
[1673586923939,4.85777,16.938,16.922,20.0]
[1673586924896,4.85777,16.938,16.922,30.0]
[1673586925430,4.85777,16.938,16.922,20.0]
[1673586925839,4.85777,16.938,16.923,10.0]
[1673586926050,4.85777,16.938,16.924,20.0]
[1673586926582,10.0,16.945,16.924,20.0]
[1673586926794,4.85777,16.944,16.924,20.0]
[1673586927431,4.85777,16.944,16.925,19.93770351]
[1673586927843,4.85777,16.944,16.926,10.0]
[1673586928376,4.85777,16.944,16.926,29.93770351]
[1673586929639,20.0,16.946,16.926,29.93770351]
[1673586930046,20.0,16.946,16.93,15.76]
[1673586930265,15.93,16.95,16.93,15.76]
[1673586930266,116.0499,16.956,16.93,79.17]
[1673586930480,225.0989,16.956,16.931,157.38981566]
[1673586930686,225.0989,16.956,16.932,10.0]
[1673586930886,225.0989,16.956,16.933,2.29961215]
[1673586931097,225.0989,16.956,16.933,42.23731566]
[1673586931301,225.0989,16.956,16.934,19.93770351]
[1673586931517,225.0989,16.956,16.935,2.29961215]
[1673586931735,225.0989,16.956,16.935,12.29961215]
[1673586931944,10.0,16.955,16.936,19.93770351]
[1673586932160,4.85777,16.954,16.933,20.0]
[1673586932480,10.0,16.953,16.931,10.1525]
[1673586932693,14.85777,16.953,16.927,19.93770351]
[1673586932886,17.96,16.952,16.927,19.93770351]
[1673586933086,14.85777,16.953,16.931,29.93770351]
[1673586933300,4.85777,16.953,16.931,29.93770351]
[1673586933514,4.85777,16.953,16.933,10.0]
[1673586933949,4.85777,16.953,16.934,39.87540702]
[1673586934266,4.85777,16.953,16.934,19.93770351]
[1673586934664,225.0989,16.956,16.934,19.93770351]
[1673586935938,229.95667,16.956,16.934,19.93770351]
[1673586936144,17.96,16.955,16.934,19.93770351]
[1673586936471,10.0,16.954,16.934,19.93770351]
[1673586936804,229.95667,16.956,16.934,19.93770351]
[1673586939519,0.96,16.955,16.933,10.0]
[1673586939715,10.96,16.955,16.934,20.0]
[1673586939929,10.96,16.955,16.934,39.93770351]
[1673586940139,10.96,16.955,16.935,19.93770351]
[1673586940350,10.96,16.955,16.936,20.0]
[1673586941089,229.95667,16.956,16.94,15.84]
[1673586941296,225.0989,16.956,16.94,15.84]
[1673586941723,20.0,16.955,16.94,15.84]
[1673586946130,32.0735557,16.963,16.94,15.84]
[1673586946131,10.0,16.969,16.941,49.93770351]
[1673586946337,114.41927,16.964,16.942,3.11294074]
[1673586946543,114.41927,16.964,16.942,23.05064425]
[1673586946756,114.41927,16.964,16.943,30.0]
[1673586946973,114.41927,16.964,16.944,3.11294074]
[1673586948228,114.41927,16.964,16.944,23.05064425]
[1673586948451,114.41927,16.964,16.946,3.11294074]
[1673586948668,114.41927,16.964,16.947,112.0987]
[1673586948871,114.41927,16.964,16.948,3.11294074]
[1673586953600,114.41927,16.964,16.948,13.11294074]
[1673586954226,114.41927,16.964,16.948,3.11294074]
[1673586957071,114.41927,16.964,16.948,13.11294074]
[1673586957819,114.41927,16.964,16.948,3.11294074]
[1673586959811,114.41927,16.964,16.948,13.11294074]
[1673586960337,4.85777,16.964,16.95,15.72]
[1673586960545,109.9346,16.973,16.952,10.0]
[1673586960759,114.79237,16.973,16.953,24.17691051]
[1673586961595,17.0,16.972,16.953,24.17691051]
[1673586962000,114.79237,16.973,16.953,4.17691051]
[1673586962210,10.0,16.972,16.953,4.17691051]
[1673586962951,114.79237,16.973,16.953,4.17691051]
[1673586963387,114.79237,16.973,16.953,14.17691051]
[1673586963571,114.79237,16.973,16.955,4.17691051]
[1673586963783,114.79237,16.973,16.957,4.17691051]
[1673586965886,109.9346,16.973,16.957,4.17691051]
[1673586966826,109.9346,16.973,16.96,15.84]
[1673586967042,109.9346,16.973,16.961,4.17691051]
[1673586967250,30.46683801,16.979,16.961,24.17691051]
[1673586967461,10.0,16.979,16.961,24.17691051]
[1673586968221,14.85777,16.979,16.961,24.17691051]
[1673586968406,45.32460801,16.979,16.961,24.17691051]
[1673586968829,17.96,16.978,16.961,24.17691051]
[1673586969038,17.96,16.978,16.961,4.17691051]
[1673586969251,20.0,16.977,16.961,4.17691051]
[1673586969898,18.92,16.976,16.959,4.17691051]
[1673586970110,24.85777,16.975,16.957,4.17691051]